fUSD/lending_fUSD_20240427
["ID","MTS","AMOUNT","RATE_DAILY","PERIOD"]
[323733950,1714221032499,-150.0,0.0001087,2]
[323733951,1714221032511,-150.0,0.00010894,2]
[323733952,1714221032520,-155.0,0.000109,2]
[323733953,1714221032530,-1835.64,0.000109,2]
[323733954,1714221032539,-952.77,0.000109,2]
[323733955,1714221032549,-910.83,0.000109,2]
[323733956,1714221032559,-960.9991,0.00010901,2]
[323733957,1714221032568,-150.0,0.00010919,2]
[323733958,1714221032577,-500.0,0.0001093,2]
[323733959,1714221032586,-4428.79131356,0.0001093,2]
[323733960,1714221032598,-519.01089523,0.0001093,2]
[323733962,1714221032609,-434.33736611,0.0001093,2]
[323733965,1714221032627,-346.082238,0.0001093,2]
[323733967,1714221032639,-316.83249585,0.0001093,2]
[323733970,1714221032650,-1088.14868525,0.0001093,2]
[323733973,1714221032673,-1800.68,0.0001093,2]
[323733975,1714221032684,-670.45812629,0.0001093,2]
[323733979,1714221032724,-3291.75,0.0001093,2]
[323733980,1714221032734,-1400.0,0.0001093,2]
[323733981,1714221032745,-1004.02797844,0.0001093,2]
[323733982,1714221032757,-2245.43580064,0.0001093,2]
[323734019,1714221038279,-1741.798776,0.0001093,2]
[323734045,1714221038544,-592.56992463,0.0001093,2]
[323734047,1714221038554,-150.0,0.00010952,2]
[323734048,1714221038563,-235.12257484,0.00010964,2]
[323734051,1714221038576,-1264.87742516,0.00010964,2]
[323734053,1714221038585,-150.0,0.00010981,2]
[323734055,1714221038594,-150.0,0.00010985,2]
[323734056,1714221038604,-300.0,0.00010987,2]
[323734058,1714221038614,-150.0,0.00010988,2]
[323734059,1714221038623,-150.0,0.00010988,2]
[323734060,1714221038633,-3000.0,0.0001099,2]
[323734061,1714221038642,-150.0,0.00010993,2]
[323734062,1714221038652,-2750.0,0.00011,3]
[323734064,1714221038661,-150.0,0.00011,2]
[323734066,1714221038670,-343.44243652,0.00011,2]
[323734068,1714221038679,-150.0,0.00011002,2]
[323734069,1714221038689,-1500.0,0.00011008,2]
[323734070,1714221038698,-300.0,0.00011011,2]
[323734071,1714221038707,-150.0,0.00011016,2]
[323734072,1714221038717,-150.0,0.00011019,2]
[323734073,1714221038726,-150.0,0.0001102,2]
[323734074,1714221038736,-641.0896,0.00011026,2]
[323734075,1714221038745,-988.9306,0.00011027,2]
[323734076,1714221038755,-1286.65937569,0.00011028,2]
[323734079,1714221038995,-473.3383626,0.00011028,2]
[323734080,1714221039008,-8240.00226171,0.00011028,2]
[323734081,1714221039019,-395.9848,0.00011028,2]
[323734082,1714221039030,-500.0,0.00011029,2]
[323734083,1714221039040,-500.0,0.00011029,2]
[323734084,1714221039049,-500.0,0.00011029,2]
[323734085,1714221039058,-500.0,0.00011029,2]
[323734086,1714221039066,-500.0,0.00011029,2]
[323734087,1714221039075,-500.0,0.00011029,2]
[323734088,1714221039086,-500.0,0.00011029,2]
[323734089,1714221039095,-500.0,0.00011029,2]
[323734090,1714221039105,-3.19615829,0.00011029,2]
[323734103,1714221040315,-392.7047,0.00010963,2]
[323734106,1714221040328,-255.471,0.00010963,2]
[323734116,1714221040425,-851.8243,0.00010963,2]
[323734118,1714221040435,-508.78309191,0.00011029,2]
[323734119,1714221040446,-500.0,0.00011029,2]
[323734120,1714221040456,-1677.26,0.00011029,2]
[323734121,1714221040466,-500.0,0.00011029,2]
[323734122,1714221040476,-500.0,0.00011029,2]
[323734123,1714221040487,-500.0,0.00011029,2]
[323734124,1714221040498,-500.0,0.00011029,2]
[323734125,1714221040509,-500.0,0.00011029,2]
[323734126,1714221040521,-500.0,0.00011029,2]
[323734127,1714221040531,-278.29,0.00011029,2]
[323734128,1714221040542,-500.0,0.00011029,2]
[323734129,1714221040552,-183.25432662,0.00011029,2]
[323734130,1714221040562,-500.0,0.00011029,2]
[323734131,1714221040571,-500.0,0.00011029,2]
[323734132,1714221040581,-500.0,0.00011029,2]
[323734133,1714221040591,-500.0,0.00011029,2]
[323734134,1714221040602,-513.94,0.00011029,2]
[323734135,1714221040611,-500.0,0.00011029,2]
[323734136,1714221040623,-500.0,0.00011029,2]
[323734137,1714221040633,-500.0,0.00011029,2]
[323734138,1714221040643,-500.0,0.00011029,2]
[323734139,1714221040653,-479.16645213,0.00011029,2]
[323734140,1714221040665,-20.83354787,0.00011029,2]
[323734141,1714221040674,-500.0,0.00011029,2]
[323734142,1714221040684,-500.0,0.00011029,2]
[323734143,1714221040693,-610.84897656,0.00011029,2]
[323734144,1714221040703,-500.0,0.00011029,2]
[323734145,1714221040713,-500.0,0.00011029,2]
[323734146,1714221040722,-500.0,0.00011029,2]
[323734147,1714221040732,-500.0,0.00011029,2]
[323734148,1714221040742,-500.0,0.00011029,2]
[323734149,1714221040752,-508.84,0.00011029,2]
[323734151,1714221040763,-516.03482784,0.00011029,2]
[323734153,1714221040773,-500.0,0.00011029,2]
[323734155,1714221040782,-261.27084353,0.00011029,2]
[323734156,1714221040795,-267.90915647,0.00011029,2]
[323734157,1714221040807,-500.0,0.00011029,2]
[323734159,1714221040818,-500.0,0.00011029,2]
[323734160,1714221040828,-500.0,0.00011029,2]
[323734161,1714221040839,-500.0,0.00011029,2]
[323734162,1714221040850,-417.09584348,0.00011029,2]
[323734163,1714221040880,-82.90415652,0.00011029,2]
[323734164,1714221040893,-500.0,0.00011029,2]
[323734165,1714221040905,-500.0,0.00011029,2]
[323734166,1714221040915,-1357.04,0.00011029,2]
[323734167,1714221040925,-500.0,0.00011029,2]
[323734168,1714221040936,-950.47,0.00011029,2]
[323734169,1714221040946,-500.0,0.00011029,2]
[323734170,1714221040956,-500.0,0.00011029,2]
[323734171,1714221040967,-4938.87,0.00011029,2]
[323734172,1714221040978,-500.0,0.00011029,2]
[323734173,1714221040989,-500.0,0.00011029,2]
[323734174,1714221041000,-1127.69,0.00011029,2]
[323734175,1714221041010,-2379.9,0.00011029,2]
[323734176,1714221041022,-500.0,0.00011029,2]
[323734177,1714221041034,-500.0,0.00011029,2]
[323734178,1714221041045,-500.0,0.00011029,2]
[323734179,1714221041058,-500.0,0.00011029,2]
[323734180,1714221041068,-2788.99246078,0.00011032,2]
[323734181,1714221041078,-3000.0,0.00011032,2]
[323734182,1714221041088,-3000.0,0.00011032,2]
[323734183,1714221041097,-150.0,0.00011035,2]
[323734184,1714221041108,-300.0,0.00011042,2]
[323734185,1714221041118,-1500.0,0.00011042,2]
[323734186,1714221041128,-150.0,0.00011056,2]
[323734187,1714221041138,-3000.0,0.0001106,2]
[323734188,1714221041148,-1500.0,0.00011063,2]
[323734189,1714221041158,-150.0,0.00011067,2]
[323734190,1714221041168,-150.0,0.00011075,2]
[323734191,1714221041178,-242.64651184,0.00011075,2]
[323734192,1714221041188,-238.88905209,0.00011077,2]
[323734193,1714221041198,-6085.33834631,0.00011079,2]
[323734194,1714221041208,-172.64655777,0.00011079,2]
[323734195,1714221041218,-176.22856803,0.00011079,2]
[323734196,1714221041228,-172.44193279,0.00011079,2]
[323734197,1714221041239,-158.91685942,0.00011079,2]
[323734198,1714221041249,-342.06207084,0.00011079,2]
[323734199,1714221041259,-3067.64514803,0.0001108,2]
[323734200,1714221041270,-158.91685941,0.0001108,2]
[323734201,1714221041280,-150.0,0.00011082,2]
[323734202,1714221041290,-150.0,0.00011083,2]
[323734203,1714221041299,-150.0,0.00011097,2]
[323734204,1714221041309,-150.0,0.00011107,2]
[323734205,1714221041319,-161.99368226,0.00011116,2]
[323734206,1714221041330,-2058.1461075,0.00011118,2]
[323734207,1714221041339,-1173.4,0.00011123,2]
[323734208,1714221041348,-500.0,0.00011123,2]
[323734209,1714221041357,-759.63,0.00011123,2]
[323734210,1714221041367,-962.17,0.00011123,2]
[323734211,1714221041376,-519.32,0.00011123,2]
[323734212,1714221041385,-461.18079024,0.00011123,2]
[323734213,1714221041395,-500.0,0.00011123,2]
[323734214,1714221041403,-927.87,0.00011123,2]
[323734215,1714221041413,-500.0,0.00011123,2]
[323734216,1714221041422,-1465.28,0.00011123,2]
[323734217,1714221041431,-500.0,0.00011123,2]
[323734218,1714221041440,-500.0,0.00011123,2]
[323734219,1714221041449,-2024.1,0.00011123,2]
[323734220,1714221041459,-500.0,0.00011123,2]
[323734221,1714221041469,-1001.11,0.00011123,2]
[323734222,1714221041479,-500.0,0.00011123,2]
[323734223,1714221041490,-624.11,0.00011123,2]
[323734224,1714221041500,-500.0,0.00011123,2]
[323734225,1714221041510,-500.0,0.00011123,2]
[323734226,1714221041521,-500.0,0.00011123,2]
[323734227,1714221041532,-500.0,0.00011123,2]
[323734228,1714221041542,-500.0,0.00011123,2]
[323734229,1714221041552,-500.0,0.00011123,2]
[323734230,1714221041563,-1064.65,0.00011123,2]
[323734231,1714221041573,-512.75,0.00011123,2]
[323734232,1714221041583,-1185.99,0.00011123,2]
[323734233,1714221041593,-500.0,0.00011123,2]
[323734234,1714221041602,-954.71,0.00011123,2]
[323734235,1714221041611,-500.0,0.00011123,2]
[323734236,1714221041621,-500.0,0.00011123,2]
[323734237,1714221041630,-500.0,0.00011123,2]
[323734238,1714221041639,-1665.68,0.00011123,2]
[323734239,1714221041649,-500.0,0.00011123,2]
[323734240,1714221041658,-500.0,0.00011123,2]
[323734241,1714221041668,-500.0,0.00011123,2]
[323734242,1714221041677,-500.0,0.00011123,2]
[323734243,1714221041686,-1182.95,0.00011123,2]
[323734244,1714221041695,-2695.05,0.00011123,2]
[323734245,1714221041704,-500.0,0.00011123,2]
[323734246,1714221041713,-1208.76,0.00011123,2]
[323734247,1714221041722,-631.4,0.00011123,2]
[323734248,1714221041731,-500.0,0.00011123,2]
[323734249,1714221041740,-3479.24,0.00011123,2]
[323734250,1714221041750,-693.74,0.00011123,2]
[323734251,1714221041759,-1394.24849072,0.00011123,2]
[323734252,1714221041773,-805.6652269,0.00011123,2]
[323734253,1714221041786,-334.63628238,0.00011123,2]
[323734254,1714221041795,-449.36371762,0.00011123,2]
[323734255,1714221041892,-253.82628238,0.00011123,2]
[323734256,1714221041902,-900.33,0.00011123,2]
[323734257,1714221041911,-1124.55,0.00011123,2]
[323734258,1714221041922,-500.0,0.00011123,2]
[323734259,1714221041932,-1207.7,0.00011123,2]
[323734260,1714221041941,-500.0,0.00011123,2]
[323734261,1714221041951,-669.87,0.00011123,2]
[323734262,1714221041960,-1429.52371762,0.00011123,2]
[323734263,1714221041971,-860.58628238,0.00011123,2]
[323734264,1714221041981,-500.0,0.00011123,2]
[323734265,1714221041990,-500.0,0.00011123,2]
[323734266,1714221041999,-500.0,0.00011123,2]
[323734267,1714221042009,-584.17,0.00011123,2]
[323734268,1714221042019,-500.0,0.00011123,2]
[323734269,1714221042030,-500.0,0.00011123,2]
[323734270,1714221042040,-500.0,0.00011123,2]
[323734271,1714221042049,-500.0,0.00011123,2]
[323734272,1714221042058,-184.06250605,0.00011123,2]
[323734273,1714221042255,-28.61520235,0.00011123,2]
[323734286,1714221043299,-287.3222916,0.00011123,2]
[323734287,1714221043309,-500.0,0.00011123,2]
[323734288,1714221043318,-456.3777134,0.00011123,2]
[323734289,1714221043329,-43.6222866,0.00011123,2]
[323734290,1714221043338,-388.3777134,0.00011123,2]
[323734291,1714221043353,-111.6222866,0.00011123,2]
[323734292,1714221043362,-500.0,0.00011123,2]
[323734293,1714221043371,-500.0,0.00011123,2]
[323734294,1714221043380,-500.0,0.00011123,2]
[323734295,1714221043390,-500.0,0.00011123,2]
[323734296,1714221043399,-500.0,0.00011123,2]
[323734297,1714221043408,-5172.81,0.00011123,2]
[323734298,1714221043417,-500.0,0.00011123,2]
[323734299,1714221043426,-8922.92,0.00011123,2]
[323734300,1714221043435,-500.0,0.00011123,2]
[323734301,1714221043445,-500.0,0.00011123,2]
[323734302,1714221043454,-500.0,0.00011124,2]
[323734303,1714221043463,-486.88831867,0.00011124,2]
[323734304,1714221043472,-500.0,0.00011124,2]
[323734305,1714221043481,-500.0,0.00011124,2]
[323734306,1714221043490,-500.0,0.00011124,2]
[323734307,1714221043500,-500.0,0.00011124,2]
[323734308,1714221043510,-500.0,0.00011124,2]
[323734309,1714221043521,-500.0,0.00011124,2]
[323734310,1714221043530,-500.0,0.00011124,2]
[323734311,1714221043540,-500.0,0.00011124,2]
[323734312,1714221043550,-500.0,0.00011124,2]
[323734313,1714221043559,-500.0,0.00011124,2]
[323734314,1714221043569,-500.0,0.00011124,2]
[323734315,1714221043578,-500.0,0.00011124,2]
[323734316,1714221043588,-500.0,0.00011124,2]
[323734317,1714221043597,-500.0,0.00011124,2]
[323734318,1714221043606,-963.81,0.00011124,2]
[323734319,1714221043615,-500.0,0.00011124,2]
[323734320,1714221043624,-500.0,0.00011124,2]
[323734321,1714221043633,-500.0,0.00011124,2]
[323734322,1714221043642,-358.03763562,0.00011124,2]
[323734323,1714221043652,-500.0,0.00011124,2]
[323734324,1714221043662,-500.0,0.00011124,2]
[323734325,1714221043670,-601.96,0.00011124,2]
[323734326,1714221043679,-559.43,0.00011124,2]
[323734327,1714221043688,-500.0,0.00011124,2]
[323734328,1714221043698,-150.0,0.00011124,2]
[323734329,1714221043707,-500.0,0.00011124,2]
[323734330,1714221043717,-500.0,0.00011124,2]
[323734331,1714221043728,-500.0,0.00011124,2]
[323734332,1714221043739,-500.0,0.00011124,2]
[323734333,1714221043749,-500.0,0.00011124,2]
[323734334,1714221043758,-500.0,0.00011124,2]
[323734336,1714221043767,-463.7496246,0.00011124,2]
[323734337,1714221043779,-36.2503754,0.00011124,2]
[323734338,1714221043788,-500.0,0.00011124,2]
[323734339,1714221043797,-500.0,0.00011124,2]
[323734340,1714221043806,-156.08028549,0.00011124,2]
[323734341,1714221043839,-500.0,0.00011123,2]
[323734342,1714221043850,-343.91971451,0.00011124,2]
[323734343,1714221043859,-500.0,0.00011124,2]
[323734344,1714221043868,-500.0,0.00011124,2]
[323734345,1714221043878,-260.64216981,0.00011124,2]
[323734346,1714221043888,-500.0,0.00011124,2]
[323734347,1714221043899,-500.0,0.00011124,2]
[323734348,1714221043908,-500.0,0.00011124,2]
[323734349,1714221043918,-500.0,0.00011124,2]
[323734350,1714221043927,-500.0,0.00011124,2]
[323734351,1714221043937,-500.0,0.00011124,2]
[323734352,1714221043950,-664.15,0.00011124,2]
[323734353,1714221043959,-500.0,0.00011124,2]
[323734354,1714221043968,-331.68811568,0.00011124,2]
[323734355,1714221043981,-168.31188432,0.00011124,2]
[323734356,1714221043990,-529.56430499,0.00011124,2]
[323734357,1714221044001,-500.0,0.00011124,2]
[323734358,1714221044011,-500.0,0.00011124,2]
[323734359,1714221044021,-500.0,0.00011124,2]
[323734360,1714221044030,-500.0,0.00011124,2]
[323734361,1714221044040,-500.0,0.00011124,2]
[323734362,1714221044051,-912.74,0.00011124,2]
[323734363,1714221044062,-500.0,0.00011124,2]
[323734364,1714221044071,-682.4,0.00011124,2]
[323734365,1714221044081,-500.0,0.00011124,2]
[323734366,1714221044090,-526.17,0.00011124,2]
[323734367,1714221044099,-500.0,0.00011124,2]
[323734368,1714221044108,-500.0,0.00011124,2]
[323734369,1714221044117,-200.54885542,0.00011124,2]
[323734370,1714221044128,-500.0,0.00011124,2]
[323734371,1714221044138,-906.2,0.00011124,2]
[323734372,1714221044148,-906.2,0.00011124,2]
[323734373,1714221044157,-906.2,0.00011124,2]
[323734374,1714221044166,-906.2,0.00011124,2]
[323734375,1714221044175,-902.5095752,0.00011124,2]
[323734376,1714221044187,-3.6904248,0.00011124,2]
[323734377,1714221044197,-906.2,0.00011124,2]
[323734378,1714221044206,-906.2,0.00011124,2]
[323734379,1714221044216,-906.2,0.00011124,2]
[323734380,1714221044225,-906.2,0.00011124,2]
[323734381,1714221044424,-906.2,0.00011124,2]
[323734382,1714221044434,-906.2,0.00011124,2]
[323734383,1714221044443,-906.2,0.00011124,2]
[323734384,1714221044454,-906.2,0.00011124,2]
[323734385,1714221044463,-906.2,0.00011124,2]
[323734386,1714221044472,-906.2,0.00011124,2]
[323734387,1714221044481,-906.2,0.00011124,2]
[323734388,1714221044491,-906.2,0.00011124,2]
[323734389,1714221044501,-906.2,0.00011124,2]
[323734390,1714221044511,-500.0,0.00011124,2]
[323734391,1714221044520,-906.2,0.00011124,2]
[323734392,1714221044530,-906.2,0.00011124,2]
[323734393,1714221044540,-906.2,0.00011124,2]
[323734394,1714221044550,-906.2,0.00011124,2]
[323734395,1714221044559,-906.2,0.00011124,2]
[323734396,1714221044569,-906.33,0.00011124,2]
[323734397,1714221044578,-500.0,0.00011124,2]
[323734398,1714221044588,-500.0,0.00011124,2]
[323734399,1714221044597,-500.0,0.00011124,2]
[323734400,1714221044607,-526.96,0.00011124,2]
[323734401,1714221044616,-500.0,0.00011124,2]
[323734402,1714221044625,-500.0,0.00011124,2]
[323734403,1714221044635,-500.0,0.00011124,2]
[323734404,1714221044645,-500.0,0.00011124,2]
[323734405,1714221044655,-500.0,0.00011124,2]
[323734406,1714221044664,-500.0,0.00011124,2]
[323734407,1714221044673,-500.0,0.00011124,2]
[323734408,1714221044683,-500.0,0.00011124,2]
[323734409,1714221044692,-2101.14,0.00011124,2]
[323734410,1714221044702,-500.0,0.00011124,2]
[323734411,1714221044713,-500.0,0.00011124,2]
[323734412,1714221044722,-500.0,0.00011124,2]
[323734413,1714221044732,-919.78,0.00011124,2]
[323734414,1714221044742,-500.0,0.00011124,2]
[323734415,1714221044752,-500.0,0.00011124,2]
[323734416,1714221044762,-544.88,0.00011124,2]
[323734417,1714221044772,-500.0,0.00011124,2]
[323734418,1714221044782,-597.01,0.00011125,2]
[323734419,1714221044791,-778.43780599,0.00011125,2]
[323734420,1714221044804,-119.07219401,0.00011125,2]
[323734421,1714221044815,-500.0,0.00011125,2]
[323734422,1714221044825,-513.05,0.00011125,2]
[323734423,1714221044834,-500.0,0.00011125,2]
[323734424,1714221044843,-500.0,0.00011125,2]
[323734425,1714221044854,-667.7,0.00011125,2]
[323734426,1714221044863,-500.0,0.00011125,2]
[323734427,1714221044873,-517.95,0.00011125,2]
[323734428,1714221044883,-849.53,0.00011125,2]
[323734429,1714221044895,-500.0,0.00011125,2]
[323734430,1714221044904,-500.0,0.00011125,2]
[323734431,1714221044914,-500.0,0.00011125,2]
[323734432,1714221044923,-858.91,0.00011125,2]
[323734433,1714221044933,-500.0,0.00011125,2]
[323734434,1714221044943,-2112.48,0.00011125,2]
[323734435,1714221044953,-500.0,0.00011125,2]
[323734436,1714221044963,-500.0,0.00011125,2]
[323734437,1714221044973,-500.0,0.00011126,2]
[323734438,1714221044983,-500.0,0.00011126,2]
[323734439,1714221044992,-500.0,0.00011126,2]
[323734440,1714221045002,-500.0,0.00011126,2]
[323734441,1714221045011,-500.0,0.00011126,2]
[323734442,1714221045020,-500.0,0.00011126,2]
[323734443,1714221045029,-500.0,0.00011126,2]
[323734444,1714221045038,-500.0,0.00011126,2]
[323734445,1714221045047,-500.0,0.00011126,2]
[323734446,1714221045057,-500.0,0.00011126,2]
[323734447,1714221045066,-500.0,0.00011126,2]
[323734448,1714221045076,-500.0,0.00011126,2]
[323734449,1714221045085,-500.0,0.00011126,2]
[323734450,1714221045095,-118.98094441,0.00011126,2]
[323734451,1714221045106,-381.01905559,0.00011126,2]
[323734452,1714221045115,-500.0,0.00011126,2]
[323734453,1714221045126,-229.41579407,0.00011126,2]
[323734454,1714221045138,-270.58420593,0.00011126,2]
[323734455,1714221045148,-500.0,0.00011126,2]
[323734456,1714221045158,-500.0,0.00011126,2]
[323734457,1714221045168,-377.38797634,0.00011126,2]
[323734458,1714221045177,-500.0,0.00011126,2]
[323734459,1714221045187,-500.0,0.00011126,2]
[323734460,1714221045197,-500.0,0.00011126,2]
[323734461,1714221045206,-195.62781773,0.00011126,2]
[323734462,1714221045236,-304.37218227,0.00011126,2]
[323734463,1714221045246,-500.0,0.00011126,2]
[323734464,1714221045256,-500.0,0.00011126,2]
[323734465,1714221045266,-512.73,0.00011126,2]
[323734466,1714221045275,-336.53430358,0.00011126,2]
[323734467,1714221045287,-163.46569642,0.00011126,2]
[323734468,1714221045297,-500.0,0.00011126,2]
[323734469,1714221045306,-500.0,0.00011126,2]
[323734470,1714221045315,-500.0,0.00011126,2]
[323734471,1714221045325,-500.0,0.00011126,2]
[323734472,1714221045334,-500.0,0.00011126,2]
[323734473,1714221045344,-500.0,0.00011126,2]
[323734474,1714221045353,-500.0,0.00011126,2]
[323734475,1714221045363,-500.0,0.00011126,2]
[323734476,1714221045372,-500.0,0.00011126,2]
[323734477,1714221045381,-500.0,0.00011126,2]
[323734478,1714221045391,-500.0,0.00011126,2]
[323734479,1714221045400,-500.0,0.00011126,2]
[323734480,1714221045410,-500.0,0.00011126,2]
[323734481,1714221045419,-500.0,0.00011126,2]
[323734482,1714221045429,-500.0,0.00011126,2]
[323734483,1714221045438,-500.0,0.00011126,2]
[323734484,1714221045447,-500.0,0.00011126,2]
[323734485,1714221045457,-500.0,0.00011126,2]
[323734486,1714221045467,-500.0,0.00011126,2]
[323734487,1714221045476,-500.0,0.00011126,2]
[323734488,1714221045485,-500.0,0.00011126,2]
[323734489,1714221045495,-500.0,0.00011126,2]
[323734490,1714221045504,-500.0,0.00011126,2]
[323734491,1714221045513,-500.0,0.00011126,2]
[323734492,1714221045527,-500.0,0.00011126,2]
[323734493,1714221045536,-500.0,0.00011126,2]
[323734494,1714221045546,-500.0,0.00011126,2]
[323734495,1714221045555,-500.0,0.00011126,2]
[323734496,1714221045565,-500.0,0.00011126,2]
[323734497,1714221045574,-500.0,0.00011126,2]
[323734498,1714221045583,-500.0,0.00011126,2]
[323734499,1714221045592,-500.0,0.00011126,2]
[323734500,1714221045602,-500.0,0.00011126,2]
[323734501,1714221045611,-500.0,0.00011126,2]
[323734502,1714221045620,-500.0,0.00011126,2]
[323734503,1714221045629,-632.36484998,0.00011126,2]
[323734504,1714221045639,-500.0,0.00011126,2]
[323734505,1714221045649,-500.0,0.00011126,2]
[323734506,1714221045658,-500.0,0.00011126,2]
[323734507,1714221045667,-563.67652176,0.00011126,2]
[323734508,1714221045677,-500.0,0.00011126,2]
[323734509,1714221045687,-500.0,0.00011126,2]
[323734510,1714221045696,-500.0,0.00011126,2]
[323734511,1714221045706,-423.44944397,0.00011126,2]
[323734512,1714221045716,-500.0,0.00011126,2]
[323734513,1714221045725,-500.0,0.00011126,2]
[323734514,1714221045735,-468.68381555,0.00011126,2]
[323734515,1714221045745,-500.0,0.00011126,2]
[323734516,1714221045754,-500.0,0.00011126,2]
[323734517,1714221045764,-500.0,0.00011126,2]
[323734518,1714221045775,-500.0,0.00011126,2]
[323734519,1714221045784,-500.0,0.00011126,2]
[323734520,1714221045794,-500.0,0.00011126,2]
[323734521,1714221045804,-279.13092413,0.00011126,2]
[323734522,1714221045816,-500.0,0.00011126,2]
[323734523,1714221045825,-500.0,0.00011126,2]
[323734524,1714221045835,-500.0,0.00011126,2]
[323734525,1714221045845,-500.0,0.00011126,2]
[323734526,1714221045855,-500.0,0.00011126,2]
[323734527,1714221045865,-500.0,0.00011126,2]
[323734528,1714221045876,-500.0,0.00011126,2]
[323734529,1714221045887,-500.0,0.00011126,2]
[323734530,1714221045898,-500.0,0.00011126,2]
[323734531,1714221045908,-500.0,0.00011126,2]
[323734532,1714221045917,-500.0,0.00011126,2]
[323734533,1714221045926,-500.0,0.00011126,2]
[323734534,1714221045935,-500.0,0.00011126,2]
[323734535,1714221045944,-235.83754467,0.00011126,2]
[323734536,1714221045954,-500.0,0.00011126,2]
[323734537,1714221045963,-500.0,0.00011126,2]
[323734539,1714221045973,-500.0,0.00011126,2]
[323734540,1714221045982,-500.0,0.00011126,2]
[323734541,1714221045991,-500.0,0.00011126,2]
[323734542,1714221046000,-500.0,0.00011126,2]
[323734543,1714221046010,-500.0,0.00011126,2]
[323734544,1714221046020,-500.0,0.00011126,2]
[323734546,1714221046030,-345.63280796,0.00011126,2]
[323734548,1714221046039,-500.0,0.00011126,2]
[323734549,1714221046048,-500.0,0.00011126,2]
[323734550,1714221046058,-500.0,0.00011126,2]
[323734551,1714221046067,-500.0,0.00011126,2]
[323734552,1714221046076,-500.0,0.00011126,2]
[323734555,1714221046086,-500.0,0.00011126,2]
[323734557,1714221046095,-501.6155251,0.00011126,2]
[323734558,1714221046106,-501.68042887,0.00011126,2]
[323734559,1714221046115,-500.0,0.00011126,2]
[323734560,1714221046124,-508.21367849,0.00011126,2]
[323734561,1714221046135,-500.0,0.00011126,2]
[323734562,1714221046144,-500.0,0.00011126,2]
[323734563,1714221046154,-512.28227857,0.00011126,2]
[323734564,1714221046165,-501.6310825,0.00011126,2]
[323734565,1714221046174,-500.0,0.00011126,2]
[323734566,1714221046183,-500.0,0.00011126,2]
[323734567,1714221046192,-500.0,0.00011126,2]
[323734568,1714221046201,-500.0,0.00011126,2]
[323734569,1714221046211,-558.26544498,0.00011126,2]
[323734570,1714221046220,-500.0,0.00011126,2]
[323734572,1714221046229,-504.63244123,0.00011126,2]
[323734574,1714221046238,-518.54112473,0.00011126,2]
[323734575,1714221046248,-500.0,0.00011126,2]
[323734576,1714221046258,-500.0,0.00011126,2]
[323734577,1714221046268,-503.65569498,0.00011126,2]
[323734578,1714221046278,-200.0,0.00011126,2]
[323734579,1714221046287,-500.0,0.00011126,2]
[323734580,1714221046297,-500.0,0.00011126,2]
[323734581,1714221046306,-315.60430933,0.00011126,2]
[323734582,1714221046315,-500.0,0.00011126,2]